Workbook

Sheet Home

Sheet Factuur in
A2: Nr. | B2: Productnaam | C2: Aankopprijs | D2: Aantal | E2: Totaal
A3: 1 | B3: Bureaustoel ST (standaard stoel) | C3: =IFERROR(VLOOKUP(B3,product,2,0),"") -> 33.33 | D3: 10 | E3: =IF(COUNT(C3,D3)=2,$C3*$D3,"") -> 333.3
A4: 2 | C4: =IFERROR(VLOOKUP(B4,product,2,0),"") ->  | E4: =IF(COUNT(C4,D4)=2,$C4*$D4,"") -> 
A5: 3 | C5: =IFERROR(VLOOKUP(B5,product,2,0),"") -> 
A6: 4 | C6: =IFERROR(VLOOKUP(B6,product,2,0),"") -> 
A7: 5 | C7: =IFERROR(VLOOKUP(B7,product,2,0),"") -> 
A8: 6 | C8: =IFERROR(VLOOKUP(B8,product,2,0),"") -> 
A9: 7 | C9: =IFERROR(VLOOKUP(B9,product,2,0),"") -> 
A10: 8 | C10: =IFERROR(VLOOKUP(B10,product,2,0),"") -> 
A11: 9 | C11: =IFERROR(VLOOKUP(B11,product,2,0),"") -> 
A12: 10 | C12: =IFERROR(VLOOKUP(B12,product,2,0),"") -> 
A13: 11 | C13: =IFERROR(VLOOKUP(B13,product,2,0),"") -> 
A14: 12 | C14: =IFERROR(VLOOKUP(B14,product,2,0),"") -> 
A15: 13 | C15: =IFERROR(VLOOKUP(B15,product,2,0),"") -> 
A16: 14 | C16: =IFERROR(VLOOKUP(B16,product,2,0),"") -> 
A17: 15 | C17: =IFERROR(VLOOKUP(B17,product,2,0),"") -> 

Sheet Factuur uit
A2: Nr. | B2: Productnaam | C2: Verkoopprijs | D2: Aantal | E2: Totaal
A3: 1 | B3: Bureaustoel ST (standaard stoel) | C3: =IFERROR(VLOOKUP(B3,product,3,0),"") -> 99.99 | D3: 8 | E3: =IF(COUNT(C3,D3)=2,$C3*$D3,"") -> 799.92
A4: 2 | C4: =IFERROR(VLOOKUP(B4,product,3,0),"") ->  | E4: =IF(COUNT(C4,D4)=2,$C4*$D4,"") -> 
A5: 3 | C5: =IFERROR(VLOOKUP(B5,product,3,0),"") -> 
A6: 4 | C6: =IFERROR(VLOOKUP(B6,product,3,0),"") -> 
A7: 5 | C7: =IFERROR(VLOOKUP(B7,product,3,0),"") -> 
A8: 6 | C8: =IFERROR(VLOOKUP(B8,product,3,0),"") -> 
A9: 7 | C9: =IFERROR(VLOOKUP(B9,product,3,0),"") -> 
A10: 8 | C10: =IFERROR(VLOOKUP(B10,product,3,0),"") -> 
A11: 9 | C11: =IFERROR(VLOOKUP(B11,product,3,0),"") -> 
A12: 10 | C12: =IFERROR(VLOOKUP(B12,product,3,0),"") -> 
A13: 11 | C13: =IFERROR(VLOOKUP(B13,product,3,0),"") -> 
A14: 12 | C14: =IFERROR(VLOOKUP(B14,product,3,0),"") -> 
A15: 13 | C15: =IFERROR(VLOOKUP(B15,product,3,0),"") -> 
A16: 14 | C16: =IFERROR(VLOOKUP(B16,product,3,0),"") -> 
A17: 15 | C17: =IFERROR(VLOOKUP(B17,product,3,0),"") -> 
A19: bedrag goederen | B19: =IF(COUNT(E3:E17)>0,SUM(E3:E17),"") -> 799.92
C20: HK (-) | D20: 0.03 | E20: =IF(COUNT(B19)=1,IF(B19>500,(B19/100*3),0),"") -> 23.9976
C21: FK (-) | D21: 0.02 | E21: =IF(COUNT(B19)=1,(B19/100)*2,"") -> 15.9984 | F21: binnen de 8 dagen (niet voor particulieren)
C22: BTW (+) | D22: 0.21 | E22: =IF(COUNT(B19)=1,B19*D22,"") -> 167.9832
A24: totaalbedrag | E24: =IF(COUNT(B19)=1,B19-E20+E22,"") -> 943.9056

Sheet openstaande rekeningen

Sheet Klanten
A2: Ondernemers:
A4: KlaCode | B4: KlaNaam | C4: Adres | D4: Gemeente | E4: Postcode | F4: Ondernemingsnummer | G4: Telefoon | H4: Fax
A5: 2001 | B5: Century 21 | C5: Luxemburgstraat 16 B | D5: BRUSSEL | E5: 1000 | F5: 452840243 | G5: 050/62.50.80 | H5: 050/62.50.80
A6: =$A5+1 -> 2002 | B6: AccentJobs | C6: Beversesteenweg 576 | D6: Roeselare | E6: 8800 | F6: 455069956 | G6: 051/46.05.00 | H6: 051/46.05.00
A7: =$A6+1 -> 2003 | B7: B&B Industriebouw | C7: Haltstraat 84 | D7: Overpelt | E7: 3900 | F7: 442036522 | G7: +32 (0)11 80 33 36 | H7: +32 (0)11 80 33 37
A8: =$A7+1 -> 2004 | B8: Tuinmeubelen Thooft | C8: Moortelputstraat 1 | D8: Gent | E8: B-9031 | F8: 419553704 | G8: 09/282.31.22 | H8: 09/282.31.22
A9: =$A8+1 -> 2005 | B9: Belfius Vlaamse Ardennen CVBA | C9: Nederstraat 17 | D9: Oudenaarde | E9: 9700 | F9: 459674288 | G9: 0455/33.90.90 | H9: /
A10: =$A9+1 -> 2006 | B10: Neckermann | C10: Voorstraat 36 | D10: Kortrijk | E10: 8500 | F10: 837437919 | G10: 056/21.98.17 | H10: /
A12: Particulieren:
A14: KlaCode | B14: KlaNaam
A15: 3001 | B15: Hans
A16: =$A15+1 -> 3002 | B16: Marie
A17: =$A16+1 -> 3003 | B17: Lara
A18: 3004 | B18: Jan
A19: 3005 | B19: Lander
A20: 3006 | B20: Stefaan
A21: 3007 | B21: Natalie
A22: 3008 | B22: Els
A23: 3009 | B23: Yves
A24: 3010 | B24: Stefanie
A25: 3011 | B25: Geert

Sheet Leveranciers
A4: LevCode | B4: LevNaam | C4: Adres | D4: Gemeente | E4: Postcode | F4: Ondernemingsnummer | G4: Telefoon | H4: Fax
A5: 1001 | B5: I.M.B | C5: Posthoornstraat 11 | D5: Mechelen | E5: 2800 | F5: 405912336 | G5: 02/339.21.11 | H5: 02/339.34.78
A6: =$A5+1 -> 1002 | B6: Bruneau | C6: kortrijksesteenweg 140 | D6: Gent | E6: 9000 | F6: 465015822 | G6: 09/241.72.72 | H6: /
A7: 1003 | B7: OTTO OFFICE | C7: Interleuvenlaan 62 | D7: Leuven | E7: 3000 | F7: 889777931 | G7: 070/.23.40.00 | H7: 070/23.40.00
A8: 1004 | B8: Buro Market | C8: Kortrijksesteenweg 1169 | D8: Gent | E8: 9000 | F8: 862222607 | G8: 02/725.14.14 | H8: 02/725.16.16
A9: 1005 | B9: OffiSil | C9: Krasnikstraat 15 | D9: Ruislede | E9: 8755 | F9: 452228549 | G9: 051/68 69 80 | H9: 051/68 69 80
A10: 1006 | B10: Schäfer Shop | C10: Excelsiorlaan 14 | D10: Zaventem | E10: 1930 | F10: 414944620 | G10: 02/725.00.00 | H10: 02/725.00.00
A11: 1007 | B11: Tackburo | C11: kortrijksesteenweg 5 | D11: Sint-Martens-Latem | E11: 9830 | F11: 401089654 | G11: 09/225.28.15 | H11: 09/233.12.77

Sheet Voorraad
A2: Nr. | B2: producten | C2: Voorraad
A3: 1 | B3: Bureaustoel ST (standaard stoel) | C3: 5
A4: 2 | B4: Bureaustoel SU (super kwalitatief) | C4: 5
A5: 3 | B5: Bureautafel STK (standaard kwaliteit bureau klein) | C5: 3
A6: 4 | B6: Bureautafel STG (standaard kwaliteit bureau groot) | C6: 3
A7: 5 | B7: Bureautafel STN (standaard kwaliteit bureau normaal) | C7: 3
A8: 6 | B8: Bureautafel SUK (super kwalitatief klein, 2 gaten voor oplaadbedrading, 2 kastjes, 2 lades) | C8: 3
A9: 7 | B9: Bureautafel SUG (super kwalitatief groot, 4 gaten voor oplaadbedrading, 5 kastjes, 5 lades) | C9: 3
A10: 8 | B10: Bureautafel SUN (super kwalitatief normaal, 3 gaten voor oplaadbedrading, 3 kastjes, 3 lades) | C10: 3
A11: 9 | B11: Archiefkast K (klein) (hoogte: 103 cm) | C11: 3
A12: 10 | B12: Archiefkast N (normaal) | C12: 3
A13: 11 | B13: Archiefkast G (groot) (hoogte 198 cm) | C13: 3
A14: 12 | B14: Sorteersysteem K (klein) (4 vakjes) | C14: 3
A15: 13 | B15: Sorteersysteem N (normaal) (8 vakjes) | C15: 3
A16: 14 | B16: Sorteersysteem G (groot) (24 vakken) | C16: 3
A17: 15 | B17: Printpapier A4 (500 blaadjes) | C17: 200
A18: 16 | B18: Stylo’s ( groen, blauw, rood, zwart: /per stuk) | C18: 200
A19: 17 | B19: Nietjesmachine | C19: 10
A20: 18 | B20: Nietjes 1000 | C20: 50
A21: 19 | B21: Perforator | C21: 10
A22: 20 | B22: Ringmap (rug van 45 mm) | C22: 300
A23: 21 | B23: Klasseringsmap (rug van 8cm) | C23: 300
A24: 22 | B24: Printer | C24: 3
A25: 23 | B25: Inkt (zwart en kleur) | C25: 100
A26: 24 | B26: Rekenmachine | C26: 10
A27: 25 | B27: Telefoon | C27: 10
A28: 26 | B28: Papiermand | C28: 50
A29: 27 | B29: Bureauonderlegger 52*65 cm | C29: 50
A30: 28 | B30: Postbakje | C30: 300
A31: 29 | B31: Planningsbord | C31: 3
A32: 30 | B32: Agenda | C32: 100
A33: 31 | B33: Stempel | C33: 20
A34: 32 | B34: Enveloppes (50 stuks) | C34: 200
A35: 33 | B35: Alcoholstiften | C35: 100
A36: 34 | B36: Etiketten ( 100 bladzijden met 24 etiketten per blad) | C36: 100
A37: 35 | B37: Cursusblok (100 bladzijden) | C37: 200
A38: 36 | B38: Fotopapier A4 (100 bladzijden) | C38: 100
A39: 37 | B39: Markeringsstiften (blauw, geel, oranje, groen, roze) | C39: 200
A40: 38 | B40: post-it geel (450 blaadjes) | C40: 100
A41: 39 | B41: correctiemiddel | C41: 100
A42: 40 | B42: U-mapje | C42: 100
A43: 41 | D43: (blanco lijn nodig voor factur uit)

Sheet Producten
A2: Nr. | B2: producten | C2: aankoopprijs | D2: verkoopprijs/stuk
A3: 1 | B3: Bureaustoel ST (standaard stoel) | C3: =$D3/3 -> 33.33 | D3: 99.99
A4: 2 | B4: Bureaustoel SU (super kwalitatief) | C4: =$D4/3 -> 63.33 | D4: 189.99
A5: 3 | B5: Bureautafel STK (standaard kwaliteit bureau klein) | C5: 19.66333333 | D5: 58.99
A6: 4 | B6: Bureautafel STG (standaard kwaliteit bureau groot) | C6: 36.66333333 | D6: 109.99
A7: 5 | B7: Bureautafel STN (standaard kwaliteit bureau normaal) | C7: 49.99666667 | D7: 149.99
A8: 6 | B8: Bureautafel SUK (super kwalitatief klein, 2 gaten voor oplaadbedrading, 2 kastjes, 2 lades) | C8: 63.52333333 | D8: 190.57
A9: 7 | B9: Bureautafel SUN (super kwalitatief normaal, 3 gaten voor oplaadbedrading, 4 kastjes, 4 lades) | C9: 120.23 | D9: 360.69
A10: 8 | B10: Bureautafel SUG (super kwalitatief groot, 4 gaten voor oplaadbedrading, 5 kastjes, 5 lades) | C10: 173.33 | D10: 519.99
A11: 9 | B11: Archiefkast K (klein) (hoogte: 103 cm) | C11: 128.9366667 | D11: 386.81
A12: 10 | B12: Archiefkast N (normaal) (hoogte 150cm) | C12: 136.7866667 | D12: 410.36
A13: 11 | B13: Archiefkast G (groot) (hoogte 198 cm) | C13: 149.2433333 | D13: 447.73
A14: 12 | B14: Sorteersysteem K (klein) (4 vakjes) | C14: 2.986666667 | D14: 8.96
A15: 13 | B15: Sorteersysteem N (normaal) (8 vakjes) | C15: 5.776666667 | D15: 17.33
A16: 14 | B16: Sorteersysteem G (groot) (24 vakken) | C16: 33.72666667 | D16: 101.18
A17: 15 | B17: Printpapier A4 (500 blaadjes) | C17: 2.486666667 | D17: 7.46
A18: 16 | B18: Stylo’s ( groen, blauw, rood, zwart: /per stuk) | C18: 0.1133333333 | D18: 0.34
A19: 17 | B19: Nietjesmachine | C19: 6.66 | D19: 19.98
A20: 18 | B20: Nietjes 1000 | C20: 0.1 | D20: 0.3
A21: 19 | B21: Perforator | C21: 2.306666667 | D21: 6.92
A22: 20 | B22: Ringmap (rug van 45 mm) | C22: 0.8133333333 | D22: 2.44
A23: 21 | B23: Klasseringsmap (rug van 8cm) | C23: 0.4133333333 | D23: 1.24
A24: 22 | B24: Printer | C24: 35.66333333 | D24: 106.99
A25: 23 | B25: Inkt (zwart 1000pg en kleur 825pg) | C25: 21.49333333 | D25: 64.48
A26: 24 | B26: Rekenmachine | C26: 1.663333333 | D26: 4.99
A27: 25 | B27: Vaste telefoon met snoer | C27: 6.666666667 | D27: 20
A28: 26 | B28: Papiermand | C28: 1.096666667 | D28: 3.29
A29: 27 | B29: Bureauonderlegger 52*65 cm | C29: 3.006666667 | D29: 9.02
A30: 28 | B30: Postbakje | C30: 0.57 | D30: 1.71
A31: 29 | B31: Planningsbord | C31: 46.36666667 | D31: 139.1
A32: 30 | B32: Agenda | C32: 1.03 | D32: 3.09
A33: 31 | B33: Stempel | C33: 2.193333333 | D33: 6.58
A34: 32 | B34: Enveloppes (50 stuks) | C34: 0.48 | D34: 1.44
A35: 33 | B35: Alcoholstiften (zwart) | C35: 0.4633333333 | D35: 1.39
A36: 34 | B36: Etiketten ( 100 bladzijden met 24 etiketten per blad) | C36: 2.83 | D36: 8.49
A37: 35 | B37: Cursusblok (100 bladzijden) | C37: 0.32 | D37: 0.96
A38: 36 | B38: Fotopapier A4 (100 bladzijden) | C38: 4.76 | D38: 14.28
A39: 37 | B39: Markeringsstiften (blauw, geel, oranje, groen, roze) | C39: 0.09666666667 | D39: 0.29
A40: 38 | B40: post-it geel (450 blaadjes) | C40: 2.246666667 | D40: 6.74
A41: 39 | B41: correctiemiddel | C41: 0.4966666667 | D41: 1.49
A42: 40 | B42: Alcoholstift (kleur) | C42: 0.4633333333 | D42: 1.39
A43: 41 | E43: (blanco lijn nodig voor factur uit)

Sheet Werknemers

Sheet Blad1
B4: Ik moet voor informatica een kassasysteem maken in excel maar weet niet hoe ik ervoor zorg dat mijn aantallen bij factuur in (zie excel in blijage) bij de voorraad komt te staan (wij hebben dit-
B5: voorlopig opgelost door een kolom bij te maken (maar iedere keer dat we de factuur in wissen gaat ook het getal weg) Andere suggesties zijn ook toegestaan!
